fUST/lending_fUST_20240413
["ID","MTS","AMOUNT","RATE_DAILY","PERIOD"]
[322355981,1712962247238,-500.0,0.00054794,120]
[322355982,1712962247247,-292.63875805,0.00054794,120]
[322355983,1712962247256,-500.0,0.00054794,120]
[322355984,1712962247265,-500.0,0.00054794,120]
[322355985,1712962247275,-503.26357152,0.00054794,120]
[322355986,1712962247285,-2264.09,0.00054794,120]
[322355987,1712962247295,-500.0,0.00054794,120]
[322355988,1712962247304,-500.0,0.00054794,120]
[322355989,1712962247314,-500.0,0.00054794,120]
[322355990,1712962247324,-154.92253873,0.00054794,120]
[322355991,1712962247333,-177.42082124,0.00054795,120]
[322355992,1712962247343,-177.42082124,0.00054795,120]
[322355993,1712962247353,-177.42082124,0.00054795,120]
[322355994,1712962247365,-177.42082124,0.00054795,120]
[322355995,1712962247374,-177.92,0.00054795,120]
[322355996,1712962247384,-177.49582124,0.00054795,120]
[322355997,1712962247395,-177.49582124,0.00054795,120]
[322355998,1712962247404,-177.49582124,0.00054795,120]
[322355999,1712962247414,-177.49582124,0.00054795,120]
[322356000,1712962247425,-177.49582124,0.00054795,120]
[322356001,1712962247435,-177.49582124,0.00054795,120]
[322356002,1712962247445,-177.49582124,0.00054795,120]
[322356003,1712962247454,-177.49582124,0.00054795,120]
[322356004,1712962247464,-177.49582124,0.00054795,120]
[322356005,1712962247475,-177.49582124,0.00054795,120]
[322356006,1712962247484,-177.49582124,0.00054795,120]
[322356007,1712962247495,-177.49582124,0.00054795,120]
[322356008,1712962247504,-177.49582124,0.00054795,120]
[322356009,1712962247513,-177.49582124,0.00054795,120]
[322356010,1712962247522,-177.49582124,0.00054795,120]
[322356011,1712962247533,-177.49582124,0.00054795,120]
[322356012,1712962247543,-177.49582124,0.00054795,120]
[322356013,1712962247552,-177.49582124,0.00054795,120]
[322356014,1712962247561,-177.49582124,0.00054795,120]
[322356015,1712962247570,-177.99,0.00054795,120]
[322356016,1712962247580,-155.43607638,0.00054795,120]
[322356017,1712962247589,-155.43607638,0.00054795,120]
[322356018,1712962247599,-155.43607638,0.00054795,120]
[322356019,1712962247610,-155.43607638,0.00054795,120]
[322356020,1712962247618,-155.43607638,0.00054795,120]
[322356021,1712962247627,-155.93,0.00054795,120]
[322356022,1712962247637,-186.59829166,0.00054795,120]
[322356023,1712962247646,-186.59829166,0.00054795,120]
[322356024,1712962247655,-186.59829166,0.00054795,120]
[322356025,1712962247664,-186.59829166,0.00054795,120]
[322356026,1712962247673,-186.59829166,0.00054795,120]
[322356027,1712962247682,-186.59829166,0.00054795,120]
[322356028,1712962247691,-186.59829166,0.00054795,120]
[322356029,1712962247700,-186.59829166,0.00054795,120]
[322356030,1712962247710,-186.59829166,0.00054795,120]
[322356031,1712962247719,-186.59829166,0.00054795,120]
[322356032,1712962247728,-186.59829166,0.00054795,120]
[322356033,1712962247738,-186.59829166,0.00054795,120]
[322356034,1712962247747,-186.59829166,0.00054795,120]
[322356035,1712962247756,-186.59829166,0.00054795,120]
[322356036,1712962247765,-186.59829166,0.00054795,120]
[322356037,1712962247775,-186.59829166,0.00054795,120]
[322356038,1712962247785,-186.59829166,0.00054795,120]
[322356039,1712962247794,-186.59829166,0.00054795,120]
[322356040,1712962247803,-186.59829166,0.00054795,120]
[322356041,1712962247813,-187.09,0.00054795,120]
[322356042,1712962247822,-176.16265906,0.00054795,120]
[322356043,1712962247832,-176.16265906,0.00054795,120]
[322356044,1712962247841,-176.66,0.00054795,120]
[322356045,1712962247850,-151.10370776,0.00054795,120]
[322356046,1712962247861,-151.10370776,0.00054795,120]
[322356047,1712962247870,-151.10370776,0.00054795,120]
[322356048,1712962247880,-151.10370776,0.00054795,120]
[322356049,1712962247889,-151.10370776,0.00054795,120]
[322356050,1712962247899,-151.10370776,0.00054795,120]
[322356051,1712962247909,-151.10370776,0.00054795,120]
[322356052,1712962247918,-151.10370776,0.00054795,120]
[322356053,1712962247927,-151.10370776,0.00054795,120]
[322356054,1712962247936,-151.10370776,0.00054795,120]
[322356055,1712962247945,-151.10370776,0.00054795,120]
[322356056,1712962247954,-151.10370776,0.00054795,120]
[322356057,1712962247964,-151.10370776,0.00054795,120]
[322356058,1712962247973,-151.6,0.00054795,120]
[322356059,1712962247982,-163.605352,0.00054795,2]
[322356060,1712962247991,-155.3233544,0.00055576,4]
[322356061,1712962248000,-3162.0,0.00055668,10]
[322356062,1712962248009,-1799.97122019,0.000557,120]
[322356063,1712962248019,-201.79769536,0.00056086,2]
[322356064,1712962248028,-222.158965,0.00056236,2]
[322356065,1712962248037,-352.33619,0.00056236,2]
[322356066,1712962248046,-251.50417718,0.00056681,13]
[322356067,1712962248056,-309.6747927,0.0005671,4]
[322356068,1712962248066,-268.51910599,0.0005671,4]
[322356069,1712962248075,-500.0,0.00056712,120]
[322356070,1712962248084,-500.0,0.00056712,120]
[322356071,1712962248095,-538.01728587,0.00056712,120]
[322356072,1712962248108,-500.0,0.00056712,120]
[322356073,1712962248117,-500.0,0.00056712,120]
[322356074,1712962248126,-500.0,0.00056712,120]
[322356075,1712962248135,-500.0,0.00056712,120]
[322356076,1712962248147,-369.0,0.00056712,14]
[322356077,1712962248156,-500.0,0.00056712,120]
[322356078,1712962248166,-369.0,0.00056712,14]
[322356079,1712962248177,-500.0,0.00056712,120]
[322356080,1712962248186,-500.0,0.00056712,120]
[322356081,1712962248195,-870.64,0.00056712,120]
[322356082,1712962248204,-516.20327059,0.00056712,120]
[322356083,1712962248213,-158.09608025,0.00056712,120]
[322356084,1712962248223,-500.0,0.00056712,120]
[322356085,1712962248232,-500.0,0.00056712,120]
[322356086,1712962248242,-500.0,0.00056712,120]
[322356087,1712962248250,-151.0,0.00056712,120]
[322356088,1712962248259,-500.0,0.00056712,120]
[322356089,1712962248268,-602.99,0.00056712,120]
[322356090,1712962248277,-500.0,0.00056712,120]
[322356091,1712962248286,-500.0,0.00056712,120]
[322356092,1712962248295,-500.0,0.00056712,120]
[322356093,1712962248304,-500.0,0.00056712,120]
[322356094,1712962248313,-500.0,0.00056712,120]
[322356095,1712962248322,-500.0,0.00056712,120]
[322356096,1712962248331,-500.0,0.00056712,120]
[322356097,1712962248340,-500.0,0.00056712,120]
[322356098,1712962248350,-280.740356,0.00056712,120]
[322356099,1712962248361,-501.33363956,0.00056712,120]
[322356100,1712962248370,-305.05661755,0.00056712,120]
[322356101,1712962248379,-500.0,0.00056712,120]
[322356102,1712962248388,-500.0,0.00056712,120]
[322356103,1712962248398,-500.0,0.00056712,120]
[322356104,1712962248407,-500.0,0.00056712,120]
[322356105,1712962248416,-511.18067452,0.00056712,7]
[322356106,1712962248425,-500.0,0.00056712,120]
[322356107,1712962248435,-500.0,0.00056712,120]
[322356108,1712962248444,-502.80133101,0.00056712,120]
[322356109,1712962248454,-500.0,0.00056712,120]
[322356110,1712962248463,-500.0,0.00056712,120]
[322356111,1712962248472,-500.0,0.00056712,120]
[322356112,1712962248481,-500.0,0.00056712,120]
[322356113,1712962248491,-233.5454295,0.00056712,120]
[322356114,1712962248502,-500.0,0.00056712,120]
[322356115,1712962248512,-574.28345912,0.00056712,120]
[322356116,1712962248522,-505.47466413,0.00056712,120]
[322356117,1712962248531,-500.0,0.00056712,120]
[322356118,1712962248540,-503.14677591,0.00056712,120]
[322356119,1712962248549,-500.0,0.00056712,120]
[322356120,1712962248560,-500.0,0.00056712,120]
[322356121,1712962248571,-500.0,0.00056712,120]
[322356122,1712962248580,-500.0,0.00056712,120]
[322356123,1712962248589,-500.0,0.00056712,120]
[322356124,1712962248598,-457.15923226,0.00056712,2]
[322356125,1712962248609,-502.47706265,0.00056712,120]
[322356126,1712962248619,-1019.03,0.00056712,120]
[322356127,1712962248628,-200.01892995,0.00056712,120]
[322356128,1712962248637,-500.0,0.00056712,120]
[322356129,1712962248647,-500.0,0.00056712,120]
[322356130,1712962248656,-500.0,0.00056712,120]
[322356131,1712962248665,-500.0,0.00056712,14]
[322356132,1712962248674,-500.0,0.00056712,120]
[322356133,1712962248683,-500.0,0.00056712,120]
[322356134,1712962248695,-500.0,0.00056712,120]
[322356135,1712962248704,-151.0,0.00056712,120]
[322356136,1712962248713,-538.75166249,0.00056712,120]
[322356137,1712962248722,-503.44069417,0.00056712,120]
[322356138,1712962248732,-500.0,0.00056712,120]
[322356139,1712962248743,-500.0,0.00056712,120]
[322356140,1712962248752,-506.01104219,0.00056712,120]
[322356141,1712962248842,-500.0,0.00056712,120]
[322356142,1712962248851,-500.0,0.00056712,120]
[322356143,1712962248861,-500.0,0.00056712,120]
[322356144,1712962248870,-151.0,0.00056712,120]
[322356145,1712962248879,-500.0,0.00056712,120]
[322356146,1712962248887,-151.0,0.00056712,120]
[322356147,1712962248896,-500.0,0.00056712,120]
[322356148,1712962248905,-500.0,0.00056712,120]
[322356149,1712962248914,-557.18221,0.00056712,120]
[322356150,1712962248923,-500.0,0.00056712,120]
[322356151,1712962248932,-557.18221,0.00056712,120]
[322356152,1712962248942,-500.0,0.00056712,120]
[322356153,1712962248952,-500.0,0.00056712,120]
[322356154,1712962248961,-500.0,0.00056712,120]
[322356155,1712962248971,-151.0,0.00056712,120]
[322356156,1712962248980,-500.0,0.00056712,120]
[322356157,1712962248990,-500.0,0.00056712,120]
[322356158,1712962248999,-500.0,0.00056712,120]
[322356159,1712962249008,-503.46078899,0.00056712,120]
[322356160,1712962249018,-501.14351935,0.00056712,120]
[322356161,1712962249027,-506.76260085,0.00056712,120]
[322356162,1712962249036,-326.622292,0.00056712,120]
[322356163,1712962249045,-500.0,0.00056712,120]
[322356164,1712962249055,-326.622292,0.00056712,120]
[322356165,1712962249065,-500.0,0.00056712,120]
[322356166,1712962249074,-500.0,0.00056712,120]
[322356167,1712962249083,-500.0,0.00056712,120]
[322356168,1712962249094,-516.65577381,0.00056712,120]
[322356169,1712962249103,-500.0,0.00056712,120]
[322356170,1712962249114,-345.84964995,0.00056712,120]
[322356171,1712962249124,-250.13564995,0.00056712,120]
[322356172,1712962249133,-500.0,0.00056712,120]
[322356173,1712962249145,-270.35237407,0.00056712,120]
[322356174,1712962249155,-500.0,0.00056712,120]
[322356175,1712962249165,-500.0,0.00056712,120]
[322356176,1712962249174,-500.0,0.00056712,120]
[322356177,1712962249184,-500.0,0.00056712,120]
[322356178,1712962249193,-151.0,0.00056712,120]
[322356179,1712962249203,-500.0,0.00056712,120]
[322356180,1712962249213,-151.0,0.00056712,120]
[322356181,1712962249222,-500.0,0.00056712,120]
[322356182,1712962249232,-151.0,0.00056712,120]
[322356183,1712962249242,-1581.45,0.00056712,60]
[322356184,1712962249251,-500.0,0.00056712,120]
[322356185,1712962249260,-154.584726,0.00056712,120]
[322356186,1712962249270,-500.0,0.00056712,120]
[322356187,1712962249279,-987.57,0.00056712,120]
[322356188,1712962249289,-500.0,0.00056712,120]
[322356189,1712962249298,-500.0,0.00056712,120]
[322356190,1712962249308,-500.0,0.00056712,120]
[322356191,1712962249317,-500.0,0.00056712,120]
[322356192,1712962249326,-500.0,0.00056712,120]
[322356193,1712962249336,-151.0,0.00056712,120]
[322356194,1712962249345,-500.0,0.00056712,120]
[322356195,1712962249355,-500.0,0.00056712,120]
[322356196,1712962249365,-500.0,0.00056712,120]
[322356197,1712962249375,-500.0,0.00056712,120]
[322356198,1712962249384,-500.0,0.00056712,120]
[322356199,1712962249394,-500.0,0.00056712,120]
[322356200,1712962249403,-414.02794365,0.00056712,120]
[322356201,1712962249413,-500.0,0.00056712,120]
[322356202,1712962249422,-500.0,0.00056712,120]
[322356203,1712962249431,-411.34389216,0.00056712,120]
[322356204,1712962249442,-505.72394198,0.00056712,120]
[322356205,1712962249451,-500.0,0.00056712,120]
[322356206,1712962249461,-500.0,0.00056712,120]
[322356207,1712962249470,-500.0,0.00056712,120]
[322356208,1712962249479,-506.57900694,0.00056712,120]
[322356209,1712962249489,-151.0,0.00056712,120]
[322356210,1712962249498,-500.0,0.00056712,120]
[322356211,1712962249507,-500.0,0.00056712,120]
[322356212,1712962249516,-500.0,0.00056712,120]
[322356213,1712962249526,-151.0,0.00056712,120]
[322356214,1712962249535,-393.3530603,0.00056712,120]
[322356215,1712962249544,-500.0,0.00056712,120]
[322356216,1712962249553,-500.0,0.00056712,120]
[322356217,1712962249563,-500.0,0.00056712,120]
[322356218,1712962249572,-268.87360344,0.00056712,120]
[322356219,1712962249581,-500.0,0.00056712,120]
[322356220,1712962249590,-556.35122411,0.00056712,120]
[322356221,1712962249600,-500.0,0.00056712,120]
[322356222,1712962249611,-500.0,0.00056712,120]
[322356223,1712962249620,-500.0,0.00056712,120]
[322356224,1712962249629,-500.0,0.00056712,120]
[322356225,1712962249638,-729.85,0.00056712,120]
[322356226,1712962249649,-500.0,0.00056712,120]
[322356227,1712962249658,-500.0,0.00056712,120]
[322356228,1712962249667,-500.0,0.00056712,120]
[322356229,1712962249676,-500.0,0.00056712,120]
[322356230,1712962249685,-500.0,0.00056712,120]
[322356231,1712962249694,-500.0,0.00056712,120]
[322356232,1712962249703,-1540.92,0.00056712,120]
[322356233,1712962249712,-500.0,0.00056712,120]
[322356234,1712962249721,-500.0,0.00056712,120]
[322356235,1712962249731,-500.0,0.00056712,120]
[322356236,1712962249740,-151.0,0.00056712,120]
[322356237,1712962249749,-297.1663235,0.00056712,120]
[322356238,1712962249758,-503.79762772,0.00056712,120]
[322356239,1712962249768,-500.0,0.00056712,120]
[322356240,1712962249777,-500.0,0.00056712,120]
[322356241,1712962249786,-500.0,0.00056712,120]
[322356242,1712962249795,-315.82017064,0.00056712,120]
[322356243,1712962249805,-500.0,0.00056712,120]
[322356244,1712962249814,-500.0,0.00056712,120]
[322356245,1712962249823,-500.0,0.00056712,120]
[322356246,1712962249833,-151.0,0.00056712,120]
[322356247,1712962249842,-500.0,0.00056712,120]
[322356248,1712962249852,-500.0,0.00056712,120]
[322356249,1712962249863,-772.73,0.00056712,120]
[322356250,1712962249872,-260.30017529,0.00056712,120]
[322356251,1712962249882,-500.0,0.00056712,120]
[322356252,1712962249891,-416.71649842,0.00056712,120]
[322356253,1712962249901,-500.0,0.00056712,120]
[322356254,1712962249910,-4232.05,0.00056712,120]
[322356255,1712962249919,-500.0,0.00056712,120]
[322356256,1712962249927,-500.0,0.00056712,120]
[322356257,1712962249937,-151.0,0.00056712,120]
[322356258,1712962249946,-500.0,0.00056712,120]
[322356259,1712962249955,-500.0,0.00056712,120]
[322356260,1712962249964,-1631.07,0.00056712,120]
[322356261,1712962249974,-500.0,0.00056712,120]
[322356262,1712962249983,-500.0,0.00056712,120]
[322356263,1712962249993,-500.0,0.00056712,120]
[322356264,1712962250002,-500.0,0.00056712,120]
[322356265,1712962250012,-500.0,0.00056712,120]
[322356266,1712962250022,-500.9808839,0.00056712,120]
[322356267,1712962250031,-500.0,0.00056712,120]
[322356268,1712962250041,-500.0,0.00056712,120]
[322356269,1712962250050,-203.78569127,0.00056712,120]
[322356270,1712962250060,-500.0,0.00056712,120]
[322356271,1712962250069,-500.0,0.00056712,120]
[322356272,1712962250078,-502.06828708,0.00056712,120]
[322356273,1712962250087,-151.0,0.00056712,120]
[322356274,1712962250099,-1000.0,0.00056712,7]
[322356275,1712962250108,-643.00166662,0.00056712,120]
[322356276,1712962250117,-500.0,0.00056712,120]
[322356277,1712962250126,-500.0,0.00056712,120]
[322356278,1712962250136,-1631.07,0.00056712,120]
[322356279,1712962250146,-500.0,0.00056712,120]
[322356280,1712962250155,-500.0,0.00056712,120]
[322356281,1712962250165,-500.0,0.00056712,120]
[322356282,1712962250174,-500.0,0.00056712,120]
[322356283,1712962250184,-500.0,0.00056712,120]
[322356284,1712962250194,-500.0,0.00056712,120]
[322356285,1712962250203,-1285.21,0.00056712,120]
[322356286,1712962250213,-822.44,0.00056712,120]
[322356287,1712962250222,-527.51,0.00056712,120]
[322356288,1712962250231,-1774.900844,0.00056712,120]
[322356289,1712962250240,-7890.88,0.00056712,120]
[322356290,1712962250249,-500.0,0.00056712,120]
[322356291,1712962250258,-1774.900844,0.00056712,120]
[322356292,1712962250267,-500.0,0.00056712,60]
[322356293,1712962250276,-3281.2,0.00056712,120]
[322356294,1712962250285,-948.8,0.00056712,120]
[322356295,1712962250294,-519.79491341,0.00056712,120]
[322356296,1712962250303,-500.0,0.00056712,120]
[322356297,1712962250311,-1337.04,0.00056712,120]
[322356298,1712962250320,-500.0,0.00056712,120]
[322356299,1712962250330,-500.0,0.00056712,120]
[322356300,1712962250339,-873.91,0.00056712,120]
[322356301,1712962250347,-151.0,0.00056712,120]
[322356302,1712962250356,-500.0,0.00056712,120]
[322356303,1712962250366,-3160.36,0.00056712,120]
[322356304,1712962250375,-500.0,0.00056712,120]
[322356305,1712962250384,-500.0,0.00056712,120]
[322356306,1712962250393,-500.0,0.00056712,120]
[322356307,1712962250401,-151.0,0.00056712,120]
[322356308,1712962250410,-503.87987524,0.00056712,120]
[322356309,1712962250419,-151.727212,0.00056712,120]
[322356310,1712962250429,-1026.41,0.00056712,120]
[322356311,1712962250438,-500.0,0.00056712,120]
[322356312,1712962250448,-406.97162284,0.00056712,120]
[322356313,1712962250457,-3088.93,0.00056712,120]
[322356314,1712962250466,-500.0,0.00056712,120]
[322356315,1712962250476,-502.2860714,0.00056712,120]
[322356316,1712962250486,-500.0,0.00056712,120]
[322356317,1712962250495,-1165.01,0.00056712,120]
[322356318,1712962250506,-507.54911695,0.00056712,120]
[322356319,1712962250515,-589.42,0.00056712,120]
[322356320,1712962250525,-500.0,0.00056712,120]
[322356321,1712962250535,-577.3584247,0.00056712,120]
[322356322,1712962250545,-500.0,0.00056712,120]
[322356323,1712962250555,-500.0,0.00056712,120]
[322356324,1712962250565,-500.0,0.00056712,120]
[322356325,1712962250575,-500.0,0.00056712,120]
[322356326,1712962250585,-500.0,0.00056712,120]
[322356327,1712962250595,-1078.82,0.00056712,120]
[322356328,1712962250605,-500.0,0.00056712,120]
[322356329,1712962250617,-500.0,0.00056712,120]
[322356330,1712962250627,-501.64572357,0.00056712,120]
[322356331,1712962250637,-500.0,0.00056712,120]
[322356332,1712962250647,-643.58897238,0.00056712,120]
[322356333,1712962250657,-500.0,0.00056712,120]
[322356334,1712962250667,-618.09401001,0.00056712,120]
[322356335,1712962250677,-500.0,0.00056712,120]
[322356336,1712962250767,-500.0,0.00056712,120]
[322356337,1712962250777,-230.05888057,0.00056712,120]
[322356338,1712962250787,-500.0,0.00056712,120]
[322356339,1712962250796,-950.5,0.00056712,120]
[322356340,1712962250806,-219.89645326,0.00056712,120]
[322356341,1712962250815,-151.0,0.00056712,120]
[322356342,1712962250826,-500.0,0.00056712,120]
[322356343,1712962250834,-500.0,0.00056712,120]
[322356344,1712962250844,-500.0,0.00056712,120]
[322356345,1712962250854,-500.0,0.00056712,120]
[322356346,1712962250864,-500.0,0.00056712,120]
[322356347,1712962250874,-2788.85,0.00056712,120]
[322356348,1712962250883,-500.0,0.00056712,120]
[322356349,1712962250893,-500.0,0.00056712,120]
[322356350,1712962250902,-500.0,0.00056712,120]
[322356351,1712962250911,-500.0,0.00056712,120]
[322356352,1712962250921,-500.0,0.00056712,120]
[322356353,1712962250931,-500.0,0.00056712,120]
[322356354,1712962250940,-500.0,0.00056712,120]
[322356355,1712962250949,-500.0,0.00056712,120]
[322356356,1712962250959,-500.0,0.00056712,120]
[322356357,1712962250968,-1000.0,0.00056712,120]
[322356358,1712962250978,-500.0,0.00056712,120]
[322356359,1712962250988,-549.07797271,0.00056712,120]
[322356360,1712962250997,-226.74820395,0.00056712,120]
[322356361,1712962251007,-500.0,0.00056712,120]
[322356362,1712962251016,-2295.41,0.00056712,120]
[322356363,1712962251026,-500.0,0.00056712,120]
[322356364,1712962251035,-1226.66,0.00056712,120]
[322356365,1712962251044,-151.0,0.00056712,120]
[322356366,1712962251053,-500.0,0.00056712,120]
[322356367,1712962251062,-532.19,0.00056712,120]
[322356368,1712962251072,-500.0,0.00056712,120]
[322356369,1712962251081,-1105.94,0.00056712,120]
[322356370,1712962251090,-1524.76,0.00056712,120]
[322356371,1712962251101,-300.0,0.00056712,7]
[322356372,1712962251112,-1823.306238,0.00056712,14]
[322356373,1712962251123,-500.0,0.00056712,120]
[322356374,1712962251135,-500.0,0.00056712,120]
[322356375,1712962251149,-37669.66,0.00056712,120]
[322356376,1712962251159,-1823.306238,0.00056712,14]
[322356377,1712962251168,-500.0,0.00056712,120]
[322356378,1712962251177,-261.00041903,0.00056712,120]
[322356379,1712962251186,-500.0,0.00056712,120]
[322356380,1712962251195,-859.71,0.00056712,120]
[322356381,1712962251204,-500.0,0.00056712,120]
[322356382,1712962251214,-11459.28,0.00056712,120]
[322356383,1712962251223,-500.0,0.00056712,120]
[322356384,1712962251233,-500.0,0.00056712,120]
[322356385,1712962251242,-151.0,0.00056712,120]
[322356386,1712962251251,-500.0,0.00056712,120]
[322356387,1712962251260,-1162.91,0.00056712,120]
[322356388,1712962251269,-500.0,0.00056712,120]
[322356389,1712962251280,-2882.21,0.00056712,21]
[322356390,1712962251289,-500.0,0.00056712,120]
[322356391,1712962251299,-501.34104571,0.00056712,120]
[322356392,1712962251308,-500.0,0.00056712,120]
[322356393,1712962251317,-511.99491622,0.00056712,120]
[322356394,1712962251327,-500.0,0.00056712,120]
[322356395,1712962251336,-569.66,0.00056712,120]
[322356396,1712962251345,-500.0,0.00056712,120]
[322356397,1712962251354,-500.0,0.00056712,120]
[322356398,1712962251365,-239.46256,0.00056712,120]
[322356399,1712962251375,-500.0,0.00056712,120]
[322356400,1712962251384,-500.0,0.00056712,120]
[322356401,1712962251393,-239.46256,0.00056712,120]
[322356402,1712962251403,-500.0,0.00056712,120]
[322356403,1712962251413,-1231.36,0.00056712,120]
[322356404,1712962251422,-500.0,0.00056712,120]
[322356405,1712962251431,-500.0,0.00056712,120]
[322356406,1712962251440,-500.0,0.00056712,20]
[322356407,1712962251449,-500.0,0.00056712,120]
[322356408,1712962251459,-500.0,0.00056712,120]
[322356409,1712962251468,-500.0,0.00056712,120]
[322356410,1712962251478,-1899.39,0.00056712,120]
[322356411,1712962251487,-500.0,0.00056712,120]
[322356412,1712962251497,-500.0,0.00056712,120]
[322356413,1712962251506,-511.86025329,0.00056712,120]
[322356414,1712962251515,-1225.59,0.00056712,120]
[322356415,1712962251525,-500.0,0.00056712,120]
[322356416,1712962251534,-151.000002,0.00056712,120]
[322356417,1712962251544,-500.0,0.00056712,120]
[322356418,1712962251553,-500.0,0.00056712,120]
[322356419,1712962251562,-500.0,0.00056712,120]
[322356420,1712962251570,-500.0,0.00056712,120]
[322356421,1712962251580,-1278.26,0.00056712,120]
[322356422,1712962251589,-387.5996027,0.00056712,120]
[322356423,1712962251598,-500.0,0.00056712,120]
[322356424,1712962251607,-500.0,0.00056712,120]
[322356425,1712962251619,-151.0,0.00056712,120]
[322356426,1712962251628,-171.83381504,0.00056712,120]
[322356427,1712962251637,-500.0,0.00056712,120]
[322356428,1712962251646,-2264.09,0.00056712,120]
[322356429,1712962251657,-500.0,0.00056712,120]
[322356430,1712962251666,-500.0,0.00056712,120]
[322356431,1712962251675,-500.0,0.00056712,120]
[322356432,1712962251685,-1760.83336052,0.00057,120]
[322356433,1712962251694,-159.8876347,0.00057134,120]
[322356434,1712962251703,-157.13624843,0.00057146,120]
[322356435,1712962251712,-163.185819,0.00057345,2]
[322356436,1712962251721,-153.51248377,0.00057727,120]
[322356437,1712962251730,-154.32520978,0.00057823,120]
[322356438,1712962251740,-153.51248377,0.00058281,120]
[322356439,1712962251749,-154.32520978,0.00058364,120]
[322356440,1712962251758,-500.0,0.0005863,120]
[322356441,1712962251767,-336.52073928,0.0005863,120]
[322356442,1712962251777,-519.86392871,0.0005863,120]
[322356443,1712962251786,-500.0,0.0005863,120]
[322356444,1712962251795,-500.0,0.0005863,120]
[322356445,1712962251804,-500.0,0.0005863,120]
[322356446,1712962251814,-500.0,0.0005863,120]
[322356447,1712962251823,-502.66621188,0.0005863,120]
[322356448,1712962251832,-870.64,0.0005863,120]
[322356449,1712962251842,-500.0,0.0005863,120]
[322356450,1712962251851,-500.0,0.0005863,120]
[322356451,1712962251861,-500.0,0.0005863,120]
[322356452,1712962251870,-500.0,0.0005863,120]
[322356453,1712962251879,-602.99,0.0005863,120]
[322356454,1712962251888,-500.0,0.0005863,120]
[322356455,1712962251897,-500.0,0.0005863,120]
[322356456,1712962251906,-500.0,0.0005863,120]
[322356457,1712962251916,-500.0,0.0005863,120]
[322356458,1712962251924,-500.0,0.0005863,120]
[322356459,1712962251934,-500.0,0.0005863,120]
[322356460,1712962251943,-500.75401144,0.0005863,120]
[322356461,1712962251952,-502.37421469,0.0005863,120]
[322356462,1712962251962,-500.0,0.0005863,120]
[322356463,1712962251971,-500.0,0.0005863,120]
[322356464,1712962251981,-500.0,0.0005863,120]
[322356465,1712962251991,-500.0,0.0005863,120]
[322356466,1712962252000,-500.0,0.0005863,120]
[322356467,1712962252009,-500.0,0.0005863,120]
[322356468,1712962252018,-500.0,0.0005863,120]
[322356469,1712962252027,-500.0,0.0005863,120]
[322356470,1712962252037,-192.06877692,0.0005863,120]
[322356471,1712962252046,-500.0,0.0005863,120]
[322356472,1712962252055,-481.4714267,0.0005863,120]
[322356473,1712962252064,-500.0,0.0005863,120]
[322356474,1712962252073,-500.0,0.0005863,120]
[322356475,1712962252082,-1019.03,0.0005863,120]
[322356476,1712962252092,-500.0,0.0005863,120]
[322356477,1712962252102,-500.0,0.0005863,120]
[322356478,1712962252113,-500.0,0.0005863,120]
[322356479,1712962252122,-501.78356523,0.0005863,14]
[322356480,1712962252131,-500.0,0.0005863,120]